BODY,BODY NAME,DATE,TRANSACTION NUMBER, AMOUNT ,SUPPLIER NAME,SUPPLIER ID,EXPENSE AREA,EXPENSE TYPE,EXPENSE CODE
http://statistics.data.gov.uk/id/local-authority/12UE,Huntingdonshire District Council,13/12/2012,116034,630,The Station Hotel,CR453752,Accommodation For Homeless,Bed & Breakfast Payment,818
http://statistics.data.gov.uk/id/local-authority/12UE,Huntingdonshire District Council,20/12/2012,116983,630,The Station Hotel,CR453752,Accommodation For Homeless,Bed & Breakfast Payment,818
http://statistics.data.gov.uk/id/local-authority/12UE,Huntingdonshire District Council,20/12/2012,116984,630,The Station Hotel,CR453752,Accommodation For Homeless,Bed & Breakfast Payment,818
http://statistics.data.gov.uk/id/local-authority/12UE,Huntingdonshire District Council,13/12/2012,117353,1512,Elephant & Castle Freehouse & Motel,CR401969,Accommodation For Homeless,Bed & Breakfast Payment,818
http://statistics.data.gov.uk/id/local-authority/12UE,Huntingdonshire District Council,20/12/2012,117813,1674,Elephant & Castle Freehouse & Motel,CR401969,Accommodation For Homeless,Bed & Breakfast Payment,818
http://statistics.data.gov.uk/id/local-authority/12UE,Huntingdonshire District Council,06/12/2012,116872,2376,Elephant & Castle Freehouse & Motel,CR401969,Accommodation For Homeless,Bed & Breakfast Payment,818
http://statistics.data.gov.uk/id/local-authority/12UE,Huntingdonshire District Council,06/12/2012,116005,798.1,Opus International Consultants,CR479831,Building Control Applications,Consultants,711
http://statistics.data.gov.uk/id/local-authority/12UE,Huntingdonshire District Council,20/12/2012,543988,659.4,North Kesteven District Council,CR477399,Building Control Other,Subcontractors,777
http://statistics.data.gov.uk/id/local-authority/12UE,Huntingdonshire District Council,13/12/2012,543590,525.85,Bedford Borough Council,CR401424,Building Control Other,Subcontractors,777
http://statistics.data.gov.uk/id/local-authority/12UE,Huntingdonshire District Council,06/12/2012,116132,695.04,Primesight  Ltd,CR132710,Bus Shelters,Sitework,359
http://statistics.data.gov.uk/id/local-authority/12UE,Huntingdonshire District Council,06/12/2012,116134,695.04,Primesight  Ltd,CR132710,Bus Shelters,Sitework,359
http://statistics.data.gov.uk/id/local-authority/12UE,Huntingdonshire District Council,06/12/2012,115444,1038,Beebys Limited,CR415822,Bus Stations,Building Cleaning Internal,440
http://statistics.data.gov.uk/id/local-authority/12UE,Huntingdonshire District Council,06/12/2012,542962,7500,Greater Cambridge Greater Peterborough Lep,CR453986,Business & Enterprise Support,Grants (Paid Out),800
http://statistics.data.gov.uk/id/local-authority/12UE,Huntingdonshire District Council,06/12/2012,116223,21.68,T N T Post London Ltd,CR479965,Call Centre,Postage,231
http://statistics.data.gov.uk/id/local-authority/12UE,Huntingdonshire District Council,06/12/2012,116068,8682.84,Cale Briparc Ltd,CR401137,Car Park Assets,Car Park Machines,522
http://statistics.data.gov.uk/id/local-authority/12UE,Huntingdonshire District Council,20/12/2012,117591,1661.05,Oastlodge Ltd,CR479114,Car Park Management,Rent,410
http://statistics.data.gov.uk/id/local-authority/12UE,Huntingdonshire District Council,20/12/2012,117270,3908.89,Cale Briparc Ltd,CR401137,Car Park Management,Car Park Machines,522
http://statistics.data.gov.uk/id/local-authority/12UE,Huntingdonshire District Council,20/12/2012,117681,4717.06,G4s Cashservices Uk Ltd,CR407133,Car Park Management,Cash Collection,702
http://statistics.data.gov.uk/id/local-authority/12UE,Huntingdonshire District Council,20/12/2012,116797,696,Thomson Reuters,CR412314,Central & Democratic Serv Mu,Books & Publications,250
http://statistics.data.gov.uk/id/local-authority/12UE,Huntingdonshire District Council,20/12/2012,116951,788,Thomson Reuters,CR412314,Central & Democratic Serv Mu,Books & Publications,250
http://statistics.data.gov.uk/id/local-authority/12UE,Huntingdonshire District Council,20/12/2012,116391,450,Newlyn Plc,CR409114,Central & Democratic Serv Mu,Legal Fees,729
http://statistics.data.gov.uk/id/local-authority/12UE,Huntingdonshire District Council,06/12/2012,115612,11408.24,J Breheny Contractors Ltd,CR000314,Chief Executive & Comt,Sitework,359
http://statistics.data.gov.uk/id/local-authority/12UE,Huntingdonshire District Council,20/12/2012,116374,3779.8,Hrmeansbusiness Ltd,CR482528,Chief Executive & Comt,Consultants,711
http://statistics.data.gov.uk/id/local-authority/12UE,Huntingdonshire District Council,13/12/2012,117337,4008.04,Shared Service Architects,CR481087,Community Projects,Training - Professional,130
http://statistics.data.gov.uk/id/local-authority/12UE,Huntingdonshire District Council,13/12/2012,116464,1183.36,Wood Green Enterprises Limited,CR408999,Community Projects,Hire Of Rooms,411
http://statistics.data.gov.uk/id/local-authority/12UE,Huntingdonshire District Council,20/12/2012,116445,1025,Sts Leisure Group,CR415607,Community Services M Us,Training - Operational,131
http://statistics.data.gov.uk/id/local-authority/12UE,Huntingdonshire District Council,20/12/2012,116444,2980,Sts Leisure Group,CR415607,Community Services M Us,Training - Operational,131
http://statistics.data.gov.uk/id/local-authority/12UE,Huntingdonshire District Council,20/12/2012,117247,180,Institute Of Qualified Lifeguards,CR403387,Community Services M Us,Licences,730
http://statistics.data.gov.uk/id/local-authority/12UE,Huntingdonshire District Council,20/12/2012,117146,11280,Peak Environmental Solutions Ltd,CR453956,Contaminated Land,Subcontractors,777
http://statistics.data.gov.uk/id/local-authority/12UE,Huntingdonshire District Council,20/12/2012,117848,2460,Pmrs,CR500549,Corporate Office,Consultation And Surveys,770
http://statistics.data.gov.uk/id/local-authority/12UE,Huntingdonshire District Council,06/12/2012,116867,2355,Cfl Estate Services,CR455208,Corporate Office,Property Management,781
http://statistics.data.gov.uk/id/local-authority/12UE,Huntingdonshire District Council,13/12/2012,117338,3000,Barker Storey Matthews,CR400788,Corporate Office,Property Management,781
http://statistics.data.gov.uk/id/local-authority/12UE,Huntingdonshire District Council,13/12/2012,116896,751.8,Pcf,CR411949,Council Tax,Software,206
http://statistics.data.gov.uk/id/local-authority/12UE,Huntingdonshire District Council,20/12/2012,116808,831.82,Newlyn Plc,CR409114,Council Tax,Bailiffs,703
http://statistics.data.gov.uk/id/local-authority/12UE,Huntingdonshire District Council,13/12/2012,116002,1022.47,Newlyn Plc,CR409114,Council Tax,Bailiffs,703
http://statistics.data.gov.uk/id/local-authority/12UE,Huntingdonshire District Council,20/12/2012,116427,1022.72,Newlyn Plc,CR409114,Council Tax,Bailiffs,703
http://statistics.data.gov.uk/id/local-authority/12UE,Huntingdonshire District Council,06/12/2012,116004,1413.02,Newlyn Plc,CR409114,Council Tax,Bailiffs,703
http://statistics.data.gov.uk/id/local-authority/12UE,Huntingdonshire District Council,20/12/2012,117734,2724.13,White Commercial Surveyors Ltd,CR412242,Customer Service Centres,Rent,410
http://statistics.data.gov.uk/id/local-authority/12UE,Huntingdonshire District Council,20/12/2012,117682,372.06,G4s Cashservices Uk Ltd,CR407133,Customer Service Centres,Cash Collection,702
http://statistics.data.gov.uk/id/local-authority/12UE,Huntingdonshire District Council,06/12/2012,116568,2880,Alison Farmer Associates,CR411072,Dc Application Processing,Consultants,711
http://statistics.data.gov.uk/id/local-authority/12UE,Huntingdonshire District Council,20/12/2012,117901,450,Astun Techynology Ltd,CR481143,Development Team,Training - Other,136
http://statistics.data.gov.uk/id/local-authority/12UE,Huntingdonshire District Council,06/12/2012,116056,1644,West Country Paper,CR400581,Document Centre,Envelopes,224
http://statistics.data.gov.uk/id/local-authority/12UE,Huntingdonshire District Council,13/12/2012,116618,1375.99,T N T Post London Ltd,CR479965,Document Centre,Postage,231
http://statistics.data.gov.uk/id/local-authority/12UE,Huntingdonshire District Council,20/12/2012,116956,1573.01,Royal Mail,CR027083,Document Centre,Postage,231
http://statistics.data.gov.uk/id/local-authority/12UE,Huntingdonshire District Council,06/12/2012,116223,909.86,T N T Post London Ltd,CR479965,Document Centre,Postage,231
http://statistics.data.gov.uk/id/local-authority/12UE,Huntingdonshire District Council,20/12/2012,116958,1378.44,T N T Post London Ltd,CR479965,Document Centre,Postage,231
http://statistics.data.gov.uk/id/local-authority/12UE,Huntingdonshire District Council,06/12/2012,116222,1026.31,T N T Post London Ltd,CR479965,Document Centre,Postage,231
http://statistics.data.gov.uk/id/local-authority/12UE,Huntingdonshire District Council,20/12/2012,116800,1182.26,T N T Post London Ltd,CR479965,Document Centre,Postage,231
http://statistics.data.gov.uk/id/local-authority/12UE,Huntingdonshire District Council,06/12/2012,116224,674.2,Royal Mail,CR027083,Document Centre,Postage,231
http://statistics.data.gov.uk/id/local-authority/12UE,Huntingdonshire District Council,20/12/2012,117254,705.6,Fingerprint,CR001165,Document Centre,Equipment Maintenance,511
http://statistics.data.gov.uk/id/local-authority/12UE,Huntingdonshire District Council,20/12/2012,117230,1035.17,Oce Uk Limited,CR409013,Document Centre,Equipment Maintenance,511
http://statistics.data.gov.uk/id/local-authority/12UE,Huntingdonshire District Council,20/12/2012,117254,244.62,Fingerprint,CR001165,Document Centre,Materials,550
http://statistics.data.gov.uk/id/local-authority/12UE,Huntingdonshire District Council,20/12/2012,116553,532.8,Xerox Office Supplies,CR481184,Document Centre,Paper,562
http://statistics.data.gov.uk/id/local-authority/12UE,Huntingdonshire District Council,20/12/2012,116966,560.4,Xerox Office Supplies,CR481184,Document Centre,Paper,562
http://statistics.data.gov.uk/id/local-authority/12UE,Huntingdonshire District Council,20/12/2012,116967,704.34,Xerox Office Supplies,CR481184,Document Centre,Paper,562
http://statistics.data.gov.uk/id/local-authority/12UE,Huntingdonshire District Council,20/12/2012,117718,2250,Printexpress.Co.Uk,CR478393,Document Centre,Subcontractors,777
http://statistics.data.gov.uk/id/local-authority/12UE,Huntingdonshire District Council,20/12/2012,117319,588.24,Staffline Group,CR416827,Domestic Refuse,Hired Staff,100
http://statistics.data.gov.uk/id/local-authority/12UE,Huntingdonshire District Council,20/12/2012,117320,614.33,Staffline Group,CR416827,Domestic Refuse,Hired Staff,100
http://statistics.data.gov.uk/id/local-authority/12UE,Huntingdonshire District Council,06/12/2012,116104,1576.8,Staffline Group,CR416827,Domestic Refuse,Hired Staff,100
http://statistics.data.gov.uk/id/local-authority/12UE,Huntingdonshire District Council,06/12/2012,116102,1633,Staffline Group,CR416827,Domestic Refuse,Hired Staff,100
http://statistics.data.gov.uk/id/local-authority/12UE,Huntingdonshire District Council,13/12/2012,116485,1821.68,Staffline Group,CR416827,Domestic Refuse,Hired Staff,100
http://statistics.data.gov.uk/id/local-authority/12UE,Huntingdonshire District Council,13/12/2012,116486,1890.8,Staffline Group,CR416827,Domestic Refuse,Hired Staff,100
http://statistics.data.gov.uk/id/local-authority/12UE,Huntingdonshire District Council,13/12/2012,116484,1934.39,Staffline Group,CR416827,Domestic Refuse,Hired Staff,100
http://statistics.data.gov.uk/id/local-authority/12UE,Huntingdonshire District Council,06/12/2012,116103,2066.38,Staffline Group,CR416827,Domestic Refuse,Hired Staff,100
http://statistics.data.gov.uk/id/local-authority/12UE,Huntingdonshire District Council,20/12/2012,117322,2461.54,Staffline Group,CR416827,Domestic Refuse,Hired Staff,100
http://statistics.data.gov.uk/id/local-authority/12UE,Huntingdonshire District Council,20/12/2012,117323,2673.48,Staffline Group,CR416827,Domestic Refuse,Hired Staff,100
http://statistics.data.gov.uk/id/local-authority/12UE,Huntingdonshire District Council,20/12/2012,117325,3127.78,Staffline Group,CR416827,Domestic Refuse,Hired Staff,100
http://statistics.data.gov.uk/id/local-authority/12UE,Huntingdonshire District Council,20/12/2012,116577,7176.12,Gelpack Excelsior Limited,CR002966,Domestic Refuse,Refuse Sacks,552
http://statistics.data.gov.uk/id/local-authority/12UE,Huntingdonshire District Council,20/12/2012,117138,667.2,Burnt Tree Group,CR480897,Domestic Refuse,Vehicle Hire,607
http://statistics.data.gov.uk/id/local-authority/12UE,Huntingdonshire District Council,20/12/2012,117783,4488,Riverside Truck Rental Ltd,CR411499,Domestic Refuse,Vehicle Hire,607
http://statistics.data.gov.uk/id/local-authority/12UE,Huntingdonshire District Council,20/12/2012,117754,1125.89,Red Forge Ltd,CR405690,Domestic Refuse,Vehicle Maintenance External,619
http://statistics.data.gov.uk/id/local-authority/12UE,Huntingdonshire District Council,13/12/2012,117264,1286.4,Lifting Equipment & Services,CR001361,Domestic Refuse,Vehicle Maintenance External,619
http://statistics.data.gov.uk/id/local-authority/12UE,Huntingdonshire District Council,06/12/2012,116520,1264.25,M & N Vehicle Services,CR480661,Domestic Refuse,Vehicle Maintenance External,619
http://statistics.data.gov.uk/id/local-authority/12UE,Huntingdonshire District Council,20/12/2012,117752,1537.44,M & N Vehicle Services,CR480661,Domestic Refuse,Vehicle Maintenance External,619
http://statistics.data.gov.uk/id/local-authority/12UE,Huntingdonshire District Council,20/12/2012,117310,2671.7,Terberg Matec Uk Ltd,CR402183,Domestic Refuse,Vehicle Maintenance External,619
http://statistics.data.gov.uk/id/local-authority/12UE,Huntingdonshire District Council,20/12/2012,117751,3801.19,M & N Vehicle Services,CR480661,Domestic Refuse,Vehicle Maintenance External,619
http://statistics.data.gov.uk/id/local-authority/12UE,Huntingdonshire District Council,20/12/2012,117311,7180.97,Terberg Matec Uk Ltd,CR402183,Domestic Refuse,Vehicle Maintenance External,619
http://statistics.data.gov.uk/id/local-authority/12UE,Huntingdonshire District Council,06/12/2012,116520,117,M & N Vehicle Services,CR480661,Domestic Refuse,Vehicle Mot,622
http://statistics.data.gov.uk/id/local-authority/12UE,Huntingdonshire District Council,13/12/2012,117304,672.77,Dennis Eagle Ltd,CR000200,Domestic Refuse,Vehicle Parts & Fittings,625
http://statistics.data.gov.uk/id/local-authority/12UE,Huntingdonshire District Council,20/12/2012,117171,780,Gaunt Motorcool Services,CR404418,Domestic Refuse,Vehicle Parts & Fittings,625
http://statistics.data.gov.uk/id/local-authority/12UE,Huntingdonshire District Council,06/12/2012,115778,1098.56,Dennis Eagle Ltd,CR000200,Domestic Refuse,Vehicle Parts & Fittings,625
http://statistics.data.gov.uk/id/local-authority/12UE,Huntingdonshire District Council,13/12/2012,117305,1224.47,Dennis Eagle Ltd,CR000200,Domestic Refuse,Vehicle Parts & Fittings,625
http://statistics.data.gov.uk/id/local-authority/12UE,Huntingdonshire District Council,20/12/2012,116530,1394.46,Garwood Europe Ltd,CR415210,Domestic Refuse,Vehicle Parts & Fittings,625
http://statistics.data.gov.uk/id/local-authority/12UE,Huntingdonshire District Council,20/12/2012,117164,2580.49,Bandvulc Tyres Ltd,CR406810,Domestic Refuse,Tyres,630
http://statistics.data.gov.uk/id/local-authority/12UE,Huntingdonshire District Council,20/12/2012,117563,300,Zurich Municipal,CR003638,Domestic Refuse,Insurance Excess,797
http://statistics.data.gov.uk/id/local-authority/12UE,Huntingdonshire District Council,20/12/2012,117197,562.02,Kershaw Mechanical Services Ltd,CR480268,E F H And Depots,Gen Building Mtce - Responsive,303
http://statistics.data.gov.uk/id/local-authority/12UE,Huntingdonshire District Council,13/12/2012,117214,4573.4,E-On Energy,CR416430,E F H And Depots,Electricity,420
http://statistics.data.gov.uk/id/local-authority/12UE,Huntingdonshire District Council,20/12/2012,117796,692,E-On Energy,CR416430,E F H And Depots,Gas,421
http://statistics.data.gov.uk/id/local-authority/12UE,Huntingdonshire District Council,13/12/2012,117239,1356.6,Ecocleen Services Limited,CR406985,E F H And Depots,Building Cleaning Internal,440
http://statistics.data.gov.uk/id/local-authority/12UE,Huntingdonshire District Council,20/12/2012,117386,655.2,Flora Tec Ltd,CR028191,E F H And Depots,Plants And Seeds,556
http://statistics.data.gov.uk/id/local-authority/12UE,Huntingdonshire District Council,13/12/2012,116618,47.56,T N T Post London Ltd,CR479965,Elections,Postage,231
http://statistics.data.gov.uk/id/local-authority/12UE,Huntingdonshire District Council,20/12/2012,116949,1552.92,Royal Mail,CR027083,Elections,Postage,231
http://statistics.data.gov.uk/id/local-authority/12UE,Huntingdonshire District Council,06/12/2012,116223,67.14,T N T Post London Ltd,CR479965,Elections,Postage,231
http://statistics.data.gov.uk/id/local-authority/12UE,Huntingdonshire District Council,20/12/2012,116958,26.93,T N T Post London Ltd,CR479965,Elections,Postage,231
http://statistics.data.gov.uk/id/local-authority/12UE,Huntingdonshire District Council,06/12/2012,116222,32.52,T N T Post London Ltd,CR479965,Elections,Postage,231
http://statistics.data.gov.uk/id/local-authority/12UE,Huntingdonshire District Council,20/12/2012,116800,5.24,T N T Post London Ltd,CR479965,Elections,Postage,231
http://statistics.data.gov.uk/id/local-authority/12UE,Huntingdonshire District Council,13/12/2012,116948,4518.74,Royal Mail,CR027083,Elections,Postage,231
http://statistics.data.gov.uk/id/local-authority/12UE,Huntingdonshire District Council,06/12/2012,116224,6352.89,Royal Mail,CR027083,Elections,Postage,231
http://statistics.data.gov.uk/id/local-authority/12UE,Huntingdonshire District Council,06/12/2012,115610,738.35,J Breheny Contractors Ltd,CR000314,Environmental Imps Mgt,Sitework,359
http://statistics.data.gov.uk/id/local-authority/12UE,Huntingdonshire District Council,13/12/2012,115992,1026,Association Of Building Engineers,CR413450,Environmental Management,Training - Professional,130
http://statistics.data.gov.uk/id/local-authority/12UE,Huntingdonshire District Council,06/12/2012,115606,682.99,J Breheny Contractors Ltd,CR000314,Estates Properties Capital,Sitework,359
http://statistics.data.gov.uk/id/local-authority/12UE,Huntingdonshire District Council,06/12/2012,116543,4706.36,Deloitte,CR416667,Estates Properties Capital,Consultants,711
http://statistics.data.gov.uk/id/local-authority/12UE,Huntingdonshire District Council,13/12/2012,116439,1150,Audit Commision,CR000237,External Audit,Audit Fees,701
http://statistics.data.gov.uk/id/local-authority/12UE,Huntingdonshire District Council,13/12/2012,117208,2400,Zurich Municipal,CR477397,Financial Services,Software,206
http://statistics.data.gov.uk/id/local-authority/12UE,Huntingdonshire District Council,13/12/2012,116896,751.8,Pcf,CR411949,Financial Services,Software,206
http://statistics.data.gov.uk/id/local-authority/12UE,Huntingdonshire District Council,06/12/2012,116437,1095.84,Peter Tickner Associates Ltd,CR455397,Financial Services Mus,Training - Other,136
http://statistics.data.gov.uk/id/local-authority/12UE,Huntingdonshire District Council,13/12/2012,116896,751.8,Pcf,CR411949,Financial Services Mus,Software,206
http://statistics.data.gov.uk/id/local-authority/12UE,Huntingdonshire District Council,13/12/2012,116089,1495.31,The Ipc Group,CR482404,Financial Services Mus,Microfilming & Scanning,230
http://statistics.data.gov.uk/id/local-authority/12UE,Huntingdonshire District Council,13/12/2012,116461,994.5,Cipfa Business Limited,CR480088,Financial Services Mus,Books & Publications,250
http://statistics.data.gov.uk/id/local-authority/12UE,Huntingdonshire District Council,13/12/2012,116528,613.15,Fenland Factors,CR024722,Fleet Management,Materials,550
http://statistics.data.gov.uk/id/local-authority/12UE,Huntingdonshire District Council,20/12/2012,117159,936.36,Days Contract Hire,CR417030,Fleet Management,Vehicle Finance Leases,602
http://statistics.data.gov.uk/id/local-authority/12UE,Huntingdonshire District Council,20/12/2012,117159,93.36,Days Contract Hire,CR417030,Fleet Management,Vehicle Service,621
http://statistics.data.gov.uk/id/local-authority/12UE,Huntingdonshire District Council,13/12/2012,116593,882.5,Dell Computer Corporation,CR408320,Food Safety,Other I T Hardware,203
http://statistics.data.gov.uk/id/local-authority/12UE,Huntingdonshire District Council,13/12/2012,117269,6713.63,Computershare Vouchers Ltd,CR412205,General Creditors,Deductions Paid To Third Party,26
http://statistics.data.gov.uk/id/local-authority/12UE,Huntingdonshire District Council,20/12/2012,117266,2294.32,Arthur Ibbett Ltd,CR000430,Grounds Maintenance (Combined),Equipment Purchases,500
http://statistics.data.gov.uk/id/local-authority/12UE,Huntingdonshire District Council,20/12/2012,117211,1401.7,Arthur Ibbett Ltd,CR000430,Grounds Maintenance (Combined),Vehicle Maintenance External,619
http://statistics.data.gov.uk/id/local-authority/12UE,Huntingdonshire District Council,20/12/2012,117833,-1881.67,Ernest Doe & Sons,CR000261,Grounds Maintenance (Combined),Vehicle Parts & Fittings,625
http://statistics.data.gov.uk/id/local-authority/12UE,Huntingdonshire District Council,20/12/2012,117826,-588.14,Ernest Doe & Sons,CR000261,Grounds Maintenance (Combined),Vehicle Parts & Fittings,625
http://statistics.data.gov.uk/id/local-authority/12UE,Huntingdonshire District Council,13/12/2012,116067,583.36,Marshall Motor Group,CR009641,Grounds Maintenance (Combined),Vehicle Parts & Fittings,625
http://statistics.data.gov.uk/id/local-authority/12UE,Huntingdonshire District Council,20/12/2012,117212,1046.23,Ernest Doe & Sons,CR000261,Grounds Maintenance (Combined),Vehicle Parts & Fittings,625
http://statistics.data.gov.uk/id/local-authority/12UE,Huntingdonshire District Council,20/12/2012,117831,1881.67,Ernest Doe & Sons,CR000261,Grounds Maintenance (Combined),Vehicle Parts & Fittings,625
http://statistics.data.gov.uk/id/local-authority/12UE,Huntingdonshire District Council,20/12/2012,117835,2894.71,Ernest Doe & Sons,CR000261,Grounds Maintenance (Combined),Vehicle Parts & Fittings,625
http://statistics.data.gov.uk/id/local-authority/12UE,Huntingdonshire District Council,20/12/2012,117838,4589.19,Ernest Doe & Sons,CR000261,Grounds Maintenance (Combined),Vehicle Parts & Fittings,625
http://statistics.data.gov.uk/id/local-authority/12UE,Huntingdonshire District Council,20/12/2012,117825,4772.11,Ernest Doe & Sons,CR000261,Grounds Maintenance (Combined),Vehicle Parts & Fittings,625
http://statistics.data.gov.uk/id/local-authority/12UE,Huntingdonshire District Council,13/12/2012,116038,408,Ians Tyre And Exhaust Centre,CR405836,Grounds Maintenance (Combined),Tyres,630
http://statistics.data.gov.uk/id/local-authority/12UE,Huntingdonshire District Council,06/12/2012,115774,888,Ians Tyre And Exhaust Centre,CR405836,Grounds Maintenance (Combined),Tyres,630
http://statistics.data.gov.uk/id/local-authority/12UE,Huntingdonshire District Council,20/12/2012,117563,1169.64,Zurich Municipal,CR003638,Grounds Maintenance (Combined),Insurance Excess,797
http://statistics.data.gov.uk/id/local-authority/12UE,Huntingdonshire District Council,13/12/2012,115802,548.78,Lightning Recruitment,CR028184,Head Of Imd,Hired Staff,100
http://statistics.data.gov.uk/id/local-authority/12UE,Huntingdonshire District Council,20/12/2012,117689,548.78,Lightning Recruitment,CR028184,Head Of Imd,Hired Staff,100
http://statistics.data.gov.uk/id/local-authority/12UE,Huntingdonshire District Council,20/12/2012,117694,548.78,Lightning Recruitment,CR028184,Head Of Imd,Hired Staff,100
http://statistics.data.gov.uk/id/local-authority/12UE,Huntingdonshire District Council,13/12/2012,115995,1320,Premier It Recruitment Ltd,CR454029,Helpdesk,Hired Staff,100
http://statistics.data.gov.uk/id/local-authority/12UE,Huntingdonshire District Council,13/12/2012,116388,1320,Premier It Recruitment Ltd,CR454029,Helpdesk,Hired Staff,100
http://statistics.data.gov.uk/id/local-authority/12UE,Huntingdonshire District Council,20/12/2012,116885,1320,Premier It Recruitment Ltd,CR454029,Helpdesk,Hired Staff,100
http://statistics.data.gov.uk/id/local-authority/12UE,Huntingdonshire District Council,20/12/2012,117380,1320,Premier It Recruitment Ltd,CR454029,Helpdesk,Hired Staff,100
http://statistics.data.gov.uk/id/local-authority/12UE,Huntingdonshire District Council,20/12/2012,117388,4690,Edrm Systems Ltd,CR416278,Helpdesk,Hired Staff,100
http://statistics.data.gov.uk/id/local-authority/12UE,Huntingdonshire District Council,13/12/2012,117390,-600,Satisnet,CR478720,Helpdesk,Software,206
http://statistics.data.gov.uk/id/local-authority/12UE,Huntingdonshire District Council,13/12/2012,114851,2400,Satisnet,CR478720,Helpdesk,Software,206
http://statistics.data.gov.uk/id/local-authority/12UE,Huntingdonshire District Council,06/12/2012,115999,1530,Virgin Media,CR412057,Helpdesk,I T Line Rental,248
http://statistics.data.gov.uk/id/local-authority/12UE,Huntingdonshire District Council,06/12/2012,116621,555.48,Swalec,CR407130,Hinchingbrooke Country Park,Electricity,420
http://statistics.data.gov.uk/id/local-authority/12UE,Huntingdonshire District Council,06/12/2012,116793,740.18,Swalec,CR407130,Hinchingbrooke Country Park,Electricity,420
http://statistics.data.gov.uk/id/local-authority/12UE,Huntingdonshire District Council,06/12/2012,115796,974.14,James Andrews Recruitment,CR453753,Housing Management Units,Hired Staff,100
http://statistics.data.gov.uk/id/local-authority/12UE,Huntingdonshire District Council,20/12/2012,116471,974.14,James Andrews Recruitment,CR453753,Housing Management Units,Hired Staff,100
http://statistics.data.gov.uk/id/local-authority/12UE,Huntingdonshire District Council,20/12/2012,116472,974.14,James Andrews Recruitment,CR453753,Housing Management Units,Hired Staff,100
http://statistics.data.gov.uk/id/local-authority/12UE,Huntingdonshire District Council,20/12/2012,116985,974.14,James Andrews Recruitment,CR453753,Housing Management Units,Hired Staff,100
http://statistics.data.gov.uk/id/local-authority/12UE,Huntingdonshire District Council,06/12/2012,115787,828,Jordans  Ltd,CR002076,Housing Management Units,Training - Operational,131
http://statistics.data.gov.uk/id/local-authority/12UE,Huntingdonshire District Council,20/12/2012,117344,2349,B. S. Graves Electrical Ltd,CR000363,Housing Services Other,Gen Building Mtce - Responsive,303
http://statistics.data.gov.uk/id/local-authority/12UE,Huntingdonshire District Council,20/12/2012,117328,2345.73,Swalec,CR407130,Housing Services Other,Electricity,420
http://statistics.data.gov.uk/id/local-authority/12UE,Huntingdonshire District Council,20/12/2012,116536,2160,Rsa Environmental Health Limited,CR482415,Human Resources,Consultants,711
http://statistics.data.gov.uk/id/local-authority/12UE,Huntingdonshire District Council,13/12/2012,116943,1200,Centrix Software,CR455396,I T Capital,Consultants,711
http://statistics.data.gov.uk/id/local-authority/12UE,Huntingdonshire District Council,20/12/2012,117901,450,Astun Techynology Ltd,CR481143,Information Manager,Training - Other,136
http://statistics.data.gov.uk/id/local-authority/12UE,Huntingdonshire District Council,20/12/2012,117389,780,Edrm At Work,CR482294,Information Manager,Consultants,711
http://statistics.data.gov.uk/id/local-authority/12UE,Huntingdonshire District Council,13/12/2012,117368,15997.8,Total Furniture,CR455438,Leisure Centres Capital,Furniture,200
http://statistics.data.gov.uk/id/local-authority/12UE,Huntingdonshire District Council,06/12/2012,116978,7200,Building Services Design - Bsd,CR409263,Leisure Centres Capital,Building Construction,300
http://statistics.data.gov.uk/id/local-authority/12UE,Huntingdonshire District Council,13/12/2012,117369,6000,Roger Wilson Electronics,CR028041,Leisure Centres Capital,Gen Building Mtce - Responsive,303
http://statistics.data.gov.uk/id/local-authority/12UE,Huntingdonshire District Council,06/12/2012,116812,25313.4,Milk Leisure Ltd,CR455268,Leisure Centres Capital,Gen Building Mtce - Planned,304
http://statistics.data.gov.uk/id/local-authority/12UE,Huntingdonshire District Council,13/12/2012,117333,675422.56,R G Carter Peterborough,CR401511,Leisure Centres Capital,Gen Building Mtce - Planned,304
http://statistics.data.gov.uk/id/local-authority/12UE,Huntingdonshire District Council,20/12/2012,117936,1500,Bowltech,CR455453,Leisure Centres Capital,Equipment Purchases,500
http://statistics.data.gov.uk/id/local-authority/12UE,Huntingdonshire District Council,20/12/2012,117182,2259.78,T C Harrison Ford,CR405072,Licences,Vehicle Inspection,618
http://statistics.data.gov.uk/id/local-authority/12UE,Huntingdonshire District Council,20/12/2012,117870,850.2,Portakabin Ltd,CR478566,Miscellaneous Grants,Hire Of Rooms,411
http://statistics.data.gov.uk/id/local-authority/12UE,Huntingdonshire District Council,20/12/2012,117842,5046,Disability Information Service Huntingdonshir,CR408884,Miscellaneous Grants,Grants (Paid Out),800
http://statistics.data.gov.uk/id/local-authority/12UE,Huntingdonshire District Council,20/12/2012,543560,6592.5,St Barnabas Community Learning Centre,CR412072,Miscellaneous Grants,Grants (Paid Out),800
http://statistics.data.gov.uk/id/local-authority/12UE,Huntingdonshire District Council,13/12/2012,116415,576,Dal-Rod Uk Ltd,CR002782,Nightsoil Collection,Subcontractors,777
http://statistics.data.gov.uk/id/local-authority/12UE,Huntingdonshire District Council,13/12/2012,117361,333.4,Magenta Coaching Solutions,CR480942,One Leisure Huntingdon,Training - Operational,131
http://statistics.data.gov.uk/id/local-authority/12UE,Huntingdonshire District Council,13/12/2012,116896,150.36,Pcf,CR411949,One Leisure Huntingdon,Software,206
http://statistics.data.gov.uk/id/local-authority/12UE,Huntingdonshire District Council,06/12/2012,115461,960.18,J Breheny Contractors Ltd,CR000314,One Leisure Huntingdon,Sitework,359
http://statistics.data.gov.uk/id/local-authority/12UE,Huntingdonshire District Council,20/12/2012,117659,560.4,Hytrac Lifts Ltd,CR030618,One Leisure Huntingdon,Plant & Equipment Maintenance,380
http://statistics.data.gov.uk/id/local-authority/12UE,Huntingdonshire District Council,13/12/2012,117332,1219.74,Swalec,CR407130,One Leisure Huntingdon,Electricity,420
http://statistics.data.gov.uk/id/local-authority/12UE,Huntingdonshire District Council,13/12/2012,117331,4558.72,E-On Energy,CR416430,One Leisure Huntingdon,Electricity,420
http://statistics.data.gov.uk/id/local-authority/12UE,Huntingdonshire District Council,20/12/2012,117799,896.46,E-On Energy,CR416430,One Leisure Huntingdon,Gas,421
http://statistics.data.gov.uk/id/local-authority/12UE,Huntingdonshire District Council,20/12/2012,117787,3771.9,E-On Energy,CR416430,One Leisure Huntingdon,Gas,421
http://statistics.data.gov.uk/id/local-authority/12UE,Huntingdonshire District Council,20/12/2012,117656,1387.5,Ecocleen Services Limited,CR406985,One Leisure Huntingdon,Building Cleaning Internal,440
http://statistics.data.gov.uk/id/local-authority/12UE,Huntingdonshire District Council,20/12/2012,117654,4128,Technogym Uk Ltd,CR033037,One Leisure Huntingdon,Equipment Purchases,500
http://statistics.data.gov.uk/id/local-authority/12UE,Huntingdonshire District Council,20/12/2012,117655,3375.6,Technogym Uk Ltd,CR033037,One Leisure Huntingdon,Equipment Maintenance,511
http://statistics.data.gov.uk/id/local-authority/12UE,Huntingdonshire District Council,13/12/2012,116214,616.62,Decleor Uk Ltd,CR480786,One Leisure Huntingdon,Materials,550
http://statistics.data.gov.uk/id/local-authority/12UE,Huntingdonshire District Council,06/12/2012,116206,717.8,Brenntag Uk Ltd,CR015017,One Leisure Huntingdon,Chemicals,551
http://statistics.data.gov.uk/id/local-authority/12UE,Huntingdonshire District Council,20/12/2012,117631,948.66,Glaxosmithkline,CR010424,One Leisure Huntingdon,Vending Materials,560
http://statistics.data.gov.uk/id/local-authority/12UE,Huntingdonshire District Council,13/12/2012,116214,78.12,Decleor Uk Ltd,CR480786,One Leisure Huntingdon,Materials For Resale,570
http://statistics.data.gov.uk/id/local-authority/12UE,Huntingdonshire District Council,20/12/2012,117682,297.62,G4s Cashservices Uk Ltd,CR407133,One Leisure Huntingdon,Cash Collection,702
http://statistics.data.gov.uk/id/local-authority/12UE,Huntingdonshire District Council,20/12/2012,117247,110,Institute Of Qualified Lifeguards,CR403387,One Leisure Huntingdon,Licences,730
http://statistics.data.gov.uk/id/local-authority/12UE,Huntingdonshire District Council,20/12/2012,117919,260,Reps,CR406694,One Leisure Huntingdon,Licences,730
http://statistics.data.gov.uk/id/local-authority/12UE,Huntingdonshire District Council,13/12/2012,117361,333.4,Magenta Coaching Solutions,CR480942,One Leisure Ramsey,Training - Operational,131
http://statistics.data.gov.uk/id/local-authority/12UE,Huntingdonshire District Council,13/12/2012,116896,150.36,Pcf,CR411949,One Leisure Ramsey,Software,206
http://statistics.data.gov.uk/id/local-authority/12UE,Huntingdonshire District Council,13/12/2012,117150,821.81,Ecocleen Services Limited,CR406985,One Leisure Ramsey,Gen Building Mtce - Planned,304
http://statistics.data.gov.uk/id/local-authority/12UE,Huntingdonshire District Council,13/12/2012,117142,1838.88,Menerga Technical Services Ltd,CR033494,One Leisure Ramsey,Plant & Equipment Maintenance,380
http://statistics.data.gov.uk/id/local-authority/12UE,Huntingdonshire District Council,20/12/2012,117793,1668.24,E-On Energy,CR416430,One Leisure Ramsey,Gas,421
http://statistics.data.gov.uk/id/local-authority/12UE,Huntingdonshire District Council,20/12/2012,117148,1256.86,Honeywell Novar Systems,CR406826,One Leisure Ramsey,Equipment Maintenance,511
http://statistics.data.gov.uk/id/local-authority/12UE,Huntingdonshire District Council,20/12/2012,117144,520.82,Brenntag Uk Ltd,CR015017,One Leisure Ramsey,Chemicals,551
http://statistics.data.gov.uk/id/local-authority/12UE,Huntingdonshire District Council,13/12/2012,117154,519.75,Booker Cash And Carry,CR027611,One Leisure Ramsey,Vending Materials,560
http://statistics.data.gov.uk/id/local-authority/12UE,Huntingdonshire District Council,20/12/2012,117682,74.41,G4s Cashservices Uk Ltd,CR407133,One Leisure Ramsey,Cash Collection,702
http://statistics.data.gov.uk/id/local-authority/12UE,Huntingdonshire District Council,20/12/2012,117247,110,Institute Of Qualified Lifeguards,CR403387,One Leisure Ramsey,Licences,730
http://statistics.data.gov.uk/id/local-authority/12UE,Huntingdonshire District Council,20/12/2012,117919,130,Reps,CR406694,One Leisure Ramsey,Licences,730
http://statistics.data.gov.uk/id/local-authority/12UE,Huntingdonshire District Council,13/12/2012,117361,333.4,Magenta Coaching Solutions,CR480942,One Leisure Sawtry,Training - Operational,131
http://statistics.data.gov.uk/id/local-authority/12UE,Huntingdonshire District Council,13/12/2012,116896,150.36,Pcf,CR411949,One Leisure Sawtry,Software,206
http://statistics.data.gov.uk/id/local-authority/12UE,Huntingdonshire District Council,13/12/2012,116889,1089.3,Ecocleen Services Limited,CR406985,One Leisure Sawtry,Gen Building Mtce - Planned,304
http://statistics.data.gov.uk/id/local-authority/12UE,Huntingdonshire District Council,13/12/2012,117334,4172.61,Swalec,CR407130,One Leisure Sawtry,Electricity,420
http://statistics.data.gov.uk/id/local-authority/12UE,Huntingdonshire District Council,20/12/2012,117800,1529.96,E-On Energy,CR416430,One Leisure Sawtry,Gas,421
http://statistics.data.gov.uk/id/local-authority/12UE,Huntingdonshire District Council,20/12/2012,117571,1923.24,Anglian Water,CR000071,One Leisure Sawtry,Water,432
http://statistics.data.gov.uk/id/local-authority/12UE,Huntingdonshire District Council,13/12/2012,116892,518.7,Booker Cash And Carry,CR027611,One Leisure Sawtry,Vending Materials,560
http://statistics.data.gov.uk/id/local-authority/12UE,Huntingdonshire District Council,20/12/2012,117682,74.41,G4s Cashservices Uk Ltd,CR407133,One Leisure Sawtry,Cash Collection,702
http://statistics.data.gov.uk/id/local-authority/12UE,Huntingdonshire District Council,20/12/2012,117247,110,Institute Of Qualified Lifeguards,CR403387,One Leisure Sawtry,Licences,730
http://statistics.data.gov.uk/id/local-authority/12UE,Huntingdonshire District Council,20/12/2012,117919,130,Reps,CR406694,One Leisure Sawtry,Licences,730
http://statistics.data.gov.uk/id/local-authority/12UE,Huntingdonshire District Council,06/12/2012,116852,532.8,Affinity Nationwide Support Services,CR482612,One Leisure St Ives,Hired Staff,100
http://statistics.data.gov.uk/id/local-authority/12UE,Huntingdonshire District Council,06/12/2012,116833,666,Affinity Nationwide Support Services,CR482612,One Leisure St Ives,Hired Staff,100
http://statistics.data.gov.uk/id/local-authority/12UE,Huntingdonshire District Council,20/12/2012,116855,1316.4,Gg Fit Ltd,CR479814,One Leisure St Ives,Training - Operational,131
http://statistics.data.gov.uk/id/local-authority/12UE,Huntingdonshire District Council,13/12/2012,117361,333.4,Magenta Coaching Solutions,CR480942,One Leisure St Ives,Training - Operational,131
http://statistics.data.gov.uk/id/local-authority/12UE,Huntingdonshire District Council,06/12/2012,116977,-774.21,Kwintet Uk Ltd,CR000968,One Leisure St Ives,Protective Clothing & Uniforms,163
http://statistics.data.gov.uk/id/local-authority/12UE,Huntingdonshire District Council,06/12/2012,116487,1839.5,Kwintet Uk Ltd,CR000968,One Leisure St Ives,Protective Clothing & Uniforms,163
http://statistics.data.gov.uk/id/local-authority/12UE,Huntingdonshire District Council,13/12/2012,116896,150.36,Pcf,CR411949,One Leisure St Ives,Software,206
http://statistics.data.gov.uk/id/local-authority/12UE,Huntingdonshire District Council,20/12/2012,116841,574.8,Doorwise,CR033538,One Leisure St Ives,Gen Building Mtce - Responsive,303
http://statistics.data.gov.uk/id/local-authority/12UE,Huntingdonshire District Council,06/12/2012,116988,716.7,Burgin Ltd,CR482438,One Leisure St Ives,Gen Building Mtce - Responsive,303
http://statistics.data.gov.uk/id/local-authority/12UE,Huntingdonshire District Council,13/12/2012,117213,2908.55,E-On Energy,CR416430,One Leisure St Ives,Electricity,420
http://statistics.data.gov.uk/id/local-authority/12UE,Huntingdonshire District Council,20/12/2012,117798,769.44,E-On Energy,CR416430,One Leisure St Ives,Gas,421
http://statistics.data.gov.uk/id/local-authority/12UE,Huntingdonshire District Council,20/12/2012,117791,3093.88,E-On Energy,CR416430,One Leisure St Ives,Gas,421
http://statistics.data.gov.uk/id/local-authority/12UE,Huntingdonshire District Council,20/12/2012,117536,699.07,Anglian Water,CR000071,One Leisure St Ives,Water,432
http://statistics.data.gov.uk/id/local-authority/12UE,Huntingdonshire District Council,13/12/2012,116850,1750.19,Ecocleen Services Limited,CR406985,One Leisure St Ives,Building Cleaning Internal,440
http://statistics.data.gov.uk/id/local-authority/12UE,Huntingdonshire District Council,06/12/2012,116865,10.79,Booker Cash And Carry,CR027611,One Leisure St Ives,Cleaning Materials,443
http://statistics.data.gov.uk/id/local-authority/12UE,Huntingdonshire District Council,06/12/2012,116864,5.39,Booker Cash And Carry,CR027611,One Leisure St Ives,Cleaning Materials,443
http://statistics.data.gov.uk/id/local-authority/12UE,Huntingdonshire District Council,13/12/2012,116479,1143.42,Abel Alarm Company Ltd,CR000201,One Leisure St Ives,Security,450
http://statistics.data.gov.uk/id/local-authority/12UE,Huntingdonshire District Council,13/12/2012,117348,30,Starlite Roadshow,CR024127,One Leisure St Ives,Equipment Hire,507
http://statistics.data.gov.uk/id/local-authority/12UE,Huntingdonshire District Council,20/12/2012,117917,644.26,Honeywell Novar Systems,CR406826,One Leisure St Ives,Equipment Maintenance,511
http://statistics.data.gov.uk/id/local-authority/12UE,Huntingdonshire District Council,13/12/2012,117345,503.84,Roger Wilson Electronics,CR028041,One Leisure St Ives,Materials,550
http://statistics.data.gov.uk/id/local-authority/12UE,Huntingdonshire District Council,06/12/2012,116865,93.65,Booker Cash And Carry,CR027611,One Leisure St Ives,Materials,550
http://statistics.data.gov.uk/id/local-authority/12UE,Huntingdonshire District Council,06/12/2012,116864,97.41,Booker Cash And Carry,CR027611,One Leisure St Ives,Materials,550
http://statistics.data.gov.uk/id/local-authority/12UE,Huntingdonshire District Council,13/12/2012,116601,1199.32,Brenntag Uk Ltd,CR015017,One Leisure St Ives,Chemicals,551
http://statistics.data.gov.uk/id/local-authority/12UE,Huntingdonshire District Council,06/12/2012,116972,626.42,Heineken Uk Ltd,CR032678,One Leisure St Ives,Bar Provisions,558
http://statistics.data.gov.uk/id/local-authority/12UE,Huntingdonshire District Council,06/12/2012,116865,405.23,Booker Cash And Carry,CR027611,One Leisure St Ives,Bar Provisions,558
http://statistics.data.gov.uk/id/local-authority/12UE,Huntingdonshire District Council,06/12/2012,116974,808.06,Heineken Uk Ltd,CR032678,One Leisure St Ives,Bar Provisions,558
http://statistics.data.gov.uk/id/local-authority/12UE,Huntingdonshire District Council,06/12/2012,116864,950.72,Booker Cash And Carry,CR027611,One Leisure St Ives,Bar Provisions,558
http://statistics.data.gov.uk/id/local-authority/12UE,Huntingdonshire District Council,06/12/2012,116865,18.07,Booker Cash And Carry,CR027611,One Leisure St Ives,Catering Materials,559
http://statistics.data.gov.uk/id/local-authority/12UE,Huntingdonshire District Council,06/12/2012,116864,30.02,Booker Cash And Carry,CR027611,One Leisure St Ives,Catering Materials,559
http://statistics.data.gov.uk/id/local-authority/12UE,Huntingdonshire District Council,06/12/2012,116865,27.98,Booker Cash And Carry,CR027611,One Leisure St Ives,Vending Materials,560
http://statistics.data.gov.uk/id/local-authority/12UE,Huntingdonshire District Council,06/12/2012,116865,164.18,Booker Cash And Carry,CR027611,One Leisure St Ives,Confectionery,572
http://statistics.data.gov.uk/id/local-authority/12UE,Huntingdonshire District Council,20/12/2012,117682,223.22,G4s Cashservices Uk Ltd,CR407133,One Leisure St Ives,Cash Collection,702
http://statistics.data.gov.uk/id/local-authority/12UE,Huntingdonshire District Council,20/12/2012,117247,110,Institute Of Qualified Lifeguards,CR403387,One Leisure St Ives,Licences,730
http://statistics.data.gov.uk/id/local-authority/12UE,Huntingdonshire District Council,20/12/2012,117919,260,Reps,CR406694,One Leisure St Ives,Licences,730
http://statistics.data.gov.uk/id/local-authority/12UE,Huntingdonshire District Council,20/12/2012,117358,1656,Nfs Hospitality,CR480012,One Leisure St Ives,Licences,730
http://statistics.data.gov.uk/id/local-authority/12UE,Huntingdonshire District Council,20/12/2012,117935,1165.19,Starlite Roadshow,CR024127,One Leisure St Ives,Entertainments Inc Cable Tv,744
http://statistics.data.gov.uk/id/local-authority/12UE,Huntingdonshire District Council,13/12/2012,117348,1150,Starlite Roadshow,CR024127,One Leisure St Ives,Entertainments Inc Cable Tv,744
http://statistics.data.gov.uk/id/local-authority/12UE,Huntingdonshire District Council,13/12/2012,117367,1893.6,2 Ton Productions,CR410213,One Leisure St Ives,Entertainments Inc Cable Tv,744
http://statistics.data.gov.uk/id/local-authority/12UE,Huntingdonshire District Council,13/12/2012,117361,333.4,Magenta Coaching Solutions,CR480942,One Leisure St Neots,Training - Operational,131
http://statistics.data.gov.uk/id/local-authority/12UE,Huntingdonshire District Council,13/12/2012,116896,150.36,Pcf,CR411949,One Leisure St Neots,Software,206
http://statistics.data.gov.uk/id/local-authority/12UE,Huntingdonshire District Council,13/12/2012,116197,574.22,Konica Minolta Business Solutions East Ltd,CR478866,One Leisure St Neots,Other Office Equipment,209
http://statistics.data.gov.uk/id/local-authority/12UE,Huntingdonshire District Council,20/12/2012,117548,9089.77,E-On Energy,CR416430,One Leisure St Neots,Electricity,420
http://statistics.data.gov.uk/id/local-authority/12UE,Huntingdonshire District Council,20/12/2012,117802,2934.82,E-On Energy,CR416430,One Leisure St Neots,Gas,421
http://statistics.data.gov.uk/id/local-authority/12UE,Huntingdonshire District Council,13/12/2012,117291,546.13,Ecocleen Services Limited,CR406985,One Leisure St Neots,Building Cleaning Internal,440
http://statistics.data.gov.uk/id/local-authority/12UE,Huntingdonshire District Council,06/12/2012,115817,1279.5,Chubb Electronic Security,CR029346,One Leisure St Neots,Security,450
http://statistics.data.gov.uk/id/local-authority/12UE,Huntingdonshire District Council,20/12/2012,116941,532.8,Phs Group Ltd,CR032018,One Leisure St Neots,Materials,550
http://statistics.data.gov.uk/id/local-authority/12UE,Huntingdonshire District Council,13/12/2012,116185,811.86,Decleor Uk Ltd,CR480786,One Leisure St Neots,Materials,550
http://statistics.data.gov.uk/id/local-authority/12UE,Huntingdonshire District Council,20/12/2012,116584,936.31,Brenntag Uk Ltd,CR015017,One Leisure St Neots,Chemicals,551
http://statistics.data.gov.uk/id/local-authority/12UE,Huntingdonshire District Council,20/12/2012,116563,293.53,Snackline Direct Ltd,CR478090,One Leisure St Neots,Bar Provisions,558
http://statistics.data.gov.uk/id/local-authority/12UE,Huntingdonshire District Council,20/12/2012,116563,12.98,Snackline Direct Ltd,CR478090,One Leisure St Neots,Catering Materials,559
http://statistics.data.gov.uk/id/local-authority/12UE,Huntingdonshire District Council,13/12/2012,116160,573.6,Glaxosmithkline,CR010424,One Leisure St Neots,Vending Materials,560
http://statistics.data.gov.uk/id/local-authority/12UE,Huntingdonshire District Council,13/12/2012,116162,781.98,Snackline Direct Ltd,CR478090,One Leisure St Neots,Vending Materials,560
http://statistics.data.gov.uk/id/local-authority/12UE,Huntingdonshire District Council,20/12/2012,116563,206.06,Snackline Direct Ltd,CR478090,One Leisure St Neots,Confectionery,572
http://statistics.data.gov.uk/id/local-authority/12UE,Huntingdonshire District Council,20/12/2012,117682,446.44,G4s Cashservices Uk Ltd,CR407133,One Leisure St Neots,Cash Collection,702
http://statistics.data.gov.uk/id/local-authority/12UE,Huntingdonshire District Council,20/12/2012,117247,110,Institute Of Qualified Lifeguards,CR403387,One Leisure St Neots,Licences,730
http://statistics.data.gov.uk/id/local-authority/12UE,Huntingdonshire District Council,20/12/2012,117919,260,Reps,CR406694,One Leisure St Neots,Licences,730
http://statistics.data.gov.uk/id/local-authority/12UE,Huntingdonshire District Council,06/12/2012,116516,1033.2,Freight Transport Association,CR003104,Operations Mgt Units,Corporate Subscriptions,754
http://statistics.data.gov.uk/id/local-authority/12UE,Huntingdonshire District Council,06/12/2012,115607,1700.92,J Breheny Contractors Ltd,CR000314,Parks & Open Spaces,Sitework,359
http://statistics.data.gov.uk/id/local-authority/12UE,Huntingdonshire District Council,06/12/2012,115614,5551.4,J Breheny Contractors Ltd,CR000314,Parks & Open Spaces,Sitework,359
http://statistics.data.gov.uk/id/local-authority/12UE,Huntingdonshire District Council,13/12/2012,116062,2561.28,Playsafety Ltd,CR479523,Parks & Open Spaces,Playground Equipment,360
http://statistics.data.gov.uk/id/local-authority/12UE,Huntingdonshire District Council,06/12/2012,115605,709.99,J Breheny Contractors Ltd,CR000314,Pathfinder House Site,Sitework,359
http://statistics.data.gov.uk/id/local-authority/12UE,Huntingdonshire District Council,13/12/2012,117215,9814.06,E-On Energy,CR416430,Pathfinder House Site,Electricity,420
http://statistics.data.gov.uk/id/local-authority/12UE,Huntingdonshire District Council,20/12/2012,117785,2825.59,E-On Energy,CR416430,Pathfinder House Site,Gas,421
http://statistics.data.gov.uk/id/local-authority/12UE,Huntingdonshire District Council,13/12/2012,117237,2146.93,Ecocleen Services Limited,CR406985,Pathfinder House Site,Building Cleaning Internal,440
http://statistics.data.gov.uk/id/local-authority/12UE,Huntingdonshire District Council,06/12/2012,115632,502.83,Maskearaid Ind Supplies,CR033423,Pathfinder House Site,Cleaning Materials,443
http://statistics.data.gov.uk/id/local-authority/12UE,Huntingdonshire District Council,20/12/2012,116809,734.33,Maskearaid Ind Supplies,CR033423,Pathfinder House Site,Cleaning Materials,443
http://statistics.data.gov.uk/id/local-authority/12UE,Huntingdonshire District Council,20/12/2012,116581,696,Warboys Services Ltd,CR000841,Paxton Pits,Gen Building Mtce - Planned,304
http://statistics.data.gov.uk/id/local-authority/12UE,Huntingdonshire District Council,20/12/2012,117759,684,Peacock Engineering,CR410043,Paxton Pits,Sitework,359
http://statistics.data.gov.uk/id/local-authority/12UE,Huntingdonshire District Council,06/12/2012,116912,513.38,Arthur Ibbett Ltd,CR000430,Paxton Pits,Equipment Maintenance,511
http://statistics.data.gov.uk/id/local-authority/12UE,Huntingdonshire District Council,06/12/2012,116999,1800,Xchange Training Uk Ltd,CR455401,Planning M U'S,Training - Professional,130
http://statistics.data.gov.uk/id/local-authority/12UE,Huntingdonshire District Council,13/12/2012,116578,2380,Thomson Reuters,CR412314,Planning M U'S,Corporate Subscriptions,754
http://statistics.data.gov.uk/id/local-authority/12UE,Huntingdonshire District Council,20/12/2012,543976,1593,South Bank University,CR033465,Planning M U'S,Training - Professional,130
http://statistics.data.gov.uk/id/local-authority/12UE,Huntingdonshire District Council,06/12/2012,115611,750.49,J Breheny Contractors Ltd,CR000314,Property Development And Mgt,Gen Building Mtce - Responsive,303
http://statistics.data.gov.uk/id/local-authority/12UE,Huntingdonshire District Council,06/12/2012,115464,12835.16,J Breheny Contractors Ltd,CR000314,Property Development And Mgt,Sitework,359
http://statistics.data.gov.uk/id/local-authority/12UE,Huntingdonshire District Council,06/12/2012,116794,512.22,Swalec,CR407130,Property Development And Mgt,Electricity,420
http://statistics.data.gov.uk/id/local-authority/12UE,Huntingdonshire District Council,20/12/2012,116446,2349.6,Wallgate Limited,CR478363,Public Conveniences,Gen Building Mtce - Planned,304
http://statistics.data.gov.uk/id/local-authority/12UE,Huntingdonshire District Council,13/12/2012,117232,658.1,Ecocleen Services Limited,CR406985,Public Conveniences,Building Cleaning Internal,440
http://statistics.data.gov.uk/id/local-authority/12UE,Huntingdonshire District Council,13/12/2012,117233,1027,Ecocleen Services Limited,CR406985,Public Conveniences,Building Cleaning Internal,440
http://statistics.data.gov.uk/id/local-authority/12UE,Huntingdonshire District Council,20/12/2012,117318,694.43,Staffline Group,CR416827,Recycling,Hired Staff,100
http://statistics.data.gov.uk/id/local-authority/12UE,Huntingdonshire District Council,13/12/2012,116488,1145.03,Staffline Group,CR416827,Recycling,Hired Staff,100
http://statistics.data.gov.uk/id/local-authority/12UE,Huntingdonshire District Council,06/12/2012,116101,1239.08,Staffline Group,CR416827,Recycling,Hired Staff,100
http://statistics.data.gov.uk/id/local-authority/12UE,Huntingdonshire District Council,20/12/2012,117324,2297.71,Staffline Group,CR416827,Recycling,Hired Staff,100
http://statistics.data.gov.uk/id/local-authority/12UE,Huntingdonshire District Council,20/12/2012,116577,8810.88,Gelpack Excelsior Limited,CR002966,Recycling,Refuse Sacks,552
http://statistics.data.gov.uk/id/local-authority/12UE,Huntingdonshire District Council,20/12/2012,117162,2975.18,Cummins Uk,CR480395,Recycling,Vehicle Maintenance External,619
http://statistics.data.gov.uk/id/local-authority/12UE,Huntingdonshire District Council,20/12/2012,117164,1925.99,Bandvulc Tyres Ltd,CR406810,Recycling,Tyres,630
http://statistics.data.gov.uk/id/local-authority/12UE,Huntingdonshire District Council,13/12/2012,116860,3977.76,Viridor Waste Management Ltd,CR482408,Recycling,Recycling Collections,747
http://statistics.data.gov.uk/id/local-authority/12UE,Huntingdonshire District Council,20/12/2012,116463,1115.7,Badenoch And Clark,CR410510,Revenue Services Mus,Hired Staff,100
http://statistics.data.gov.uk/id/local-authority/12UE,Huntingdonshire District Council,06/12/2012,116039,600,Northgate Information Solutions Uk Ltd,CR028925,Revenue Services Mus,Training - Other,136
http://statistics.data.gov.uk/id/local-authority/12UE,Huntingdonshire District Council,06/12/2012,116223,635.38,T N T Post London Ltd,CR479965,Revenue Services Mus,Postage,231
http://statistics.data.gov.uk/id/local-authority/12UE,Huntingdonshire District Council,20/12/2012,116958,275.89,T N T Post London Ltd,CR479965,Revenue Services Mus,Postage,231
http://statistics.data.gov.uk/id/local-authority/12UE,Huntingdonshire District Council,06/12/2012,116222,764.4,T N T Post London Ltd,CR479965,Revenue Services Mus,Postage,231
http://statistics.data.gov.uk/id/local-authority/12UE,Huntingdonshire District Council,20/12/2012,116800,2102.28,T N T Post London Ltd,CR479965,Revenue Services Mus,Postage,231
http://statistics.data.gov.uk/id/local-authority/12UE,Huntingdonshire District Council,20/12/2012,116391,360,Newlyn Plc,CR409114,Revenue Services Mus,Legal Fees,729
http://statistics.data.gov.uk/id/local-authority/12UE,Huntingdonshire District Council,20/12/2012,116947,1301.68,Dell Computer Corporation,CR408320,Software Capital,P C'S And Accessories,201
http://statistics.data.gov.uk/id/local-authority/12UE,Huntingdonshire District Council,13/12/2012,116594,2603.35,Dell Computer Corporation,CR408320,Software Capital,P C'S And Accessories,201
http://statistics.data.gov.uk/id/local-authority/12UE,Huntingdonshire District Council,20/12/2012,116906,4200,Khipu Networks Ltd,CR482348,Software Capital,Network Hardware,205
http://statistics.data.gov.uk/id/local-authority/12UE,Huntingdonshire District Council,20/12/2012,116904,5934,Eacs Ltd,CR404499,Software Capital,Network Hardware,205
http://statistics.data.gov.uk/id/local-authority/12UE,Huntingdonshire District Council,20/12/2012,116904,385.2,Eacs Ltd,CR404499,Software Capital,Software,206
http://statistics.data.gov.uk/id/local-authority/12UE,Huntingdonshire District Council,20/12/2012,117933,22965.11,Cambridgeshire County Council,CR017440,Sports Equipment Capital,Rent,410
http://statistics.data.gov.uk/id/local-authority/12UE,Huntingdonshire District Council,20/12/2012,117321,1469.29,Staffline Group,CR416827,Street Cleaning,Hired Staff,100
http://statistics.data.gov.uk/id/local-authority/12UE,Huntingdonshire District Council,06/12/2012,116107,1566.71,Staffline Group,CR416827,Street Cleaning,Hired Staff,100
http://statistics.data.gov.uk/id/local-authority/12UE,Huntingdonshire District Council,13/12/2012,116490,1566.71,Staffline Group,CR416827,Street Cleaning,Hired Staff,100
http://statistics.data.gov.uk/id/local-authority/12UE,Huntingdonshire District Council,20/12/2012,117326,1575.76,Staffline Group,CR416827,Street Cleaning,Hired Staff,100
http://statistics.data.gov.uk/id/local-authority/12UE,Huntingdonshire District Council,06/12/2012,115656,1201.5,Breheny Contractors Ltd,CR027653,Street Cleaning,Sitework,359
http://statistics.data.gov.uk/id/local-authority/12UE,Huntingdonshire District Council,20/12/2012,117209,1281,Johnston Engineering Ltd,CR029831,Street Cleaning,Vehicle Maintenance External,619
http://statistics.data.gov.uk/id/local-authority/12UE,Huntingdonshire District Council,13/12/2012,116409,3581.4,Johnston Engineering Ltd,CR029831,Street Cleaning,Vehicle Maintenance External,619
http://statistics.data.gov.uk/id/local-authority/12UE,Huntingdonshire District Council,13/12/2012,116038,360,Ians Tyre And Exhaust Centre,CR405836,Street Cleaning,Tyres,630
http://statistics.data.gov.uk/id/local-authority/12UE,Huntingdonshire District Council,20/12/2012,116577,1512,Gelpack Excelsior Limited,CR002966,Trade Waste,Refuse Sacks,552
http://statistics.data.gov.uk/id/local-authority/12UE,Huntingdonshire District Council,20/12/2012,117312,1297.3,Archant Herts & Cambs,CR415764,Transportation Mgt,Advertising - Communication,256
http://statistics.data.gov.uk/id/local-authority/12UE,Huntingdonshire District Council,20/12/2012,117738,1679.4,Crowders Nurseries,CR411361,Trees,Trees/Shrubs,555
http://statistics.data.gov.uk/id/local-authority/12UE,Huntingdonshire District Council,06/12/2012,115609,682.99,J Breheny Contractors Ltd,CR000314,Watercourses,Sitework,359
http://statistics.data.gov.uk/id/local-authority/12UE,Huntingdonshire District Council,06/12/2012,115691,768,Lattenbury Services,CR406847,Watercourses,Sitework,359
http://statistics.data.gov.uk/id/local-authority/12UE,Huntingdonshire District Council,06/12/2012,115689,864,Lattenbury Services,CR406847,Watercourses,Sitework,359
http://statistics.data.gov.uk/id/local-authority/12UE,Huntingdonshire District Council,06/12/2012,115690,1680,Lattenbury Services,CR406847,Watercourses,Sitework,359
http://statistics.data.gov.uk/id/local-authority/12UE,Huntingdonshire District Council,06/12/2012,115693,2208,Lattenbury Services,CR406847,Watercourses,Sitework,359
http://statistics.data.gov.uk/id/local-authority/12UE,Huntingdonshire District Council,13/12/2012,116040,3304.8,Adc East Anglia Limited,CR410308,Watercourses,Sitework,359
http://statistics.data.gov.uk/id/local-authority/12UE,Huntingdonshire District Council,06/12/2012,115692,3612,Lattenbury Services,CR406847,Watercourses,Sitework,359
http://statistics.data.gov.uk/id/local-authority/12UE,Huntingdonshire District Council,06/12/2012,115608,6256.26,J Breheny Contractors Ltd,CR000314,Watercourses,Sitework,359
http://statistics.data.gov.uk/id/local-authority/12UE,Huntingdonshire District Council,06/12/2012,115463,1118.76,J Breheny Contractors Ltd,CR000314,Watercourses,Electricity,420
http://statistics.data.gov.uk/id/local-authority/12UE,Huntingdonshire District Council,13/12/2012,116799,1392,Urs Infrastructure & Environment Uk Ltd,CR032963,Watercourses,Consultants,711
